[Event "XV American Continental 2022"]
[Site "San Salvador"]
[Date "2022.05.06"]
[Round "7.4"]
[White "Krysa, Leandro"]
[Black "Salinas Herrera, Pablo"]
[Result "1-0"]
[ECO "D52"]
[WhiteElo "2525"]
[BlackElo "2534"]
[Annotator "TA"]
[PlyCount "67"]
[EventDate "2022.05.02"]
[EventCountry "ESA"]
[SourceTitle "playchess.com"]
[Source "ChessBase"]
[SourceQuality "1"]
[TimeControl "40/5400+30:1800+30"]

{[%evp 17,67,20,35,33,36,36,45,31,62,59,76,48,42,59,73,70,80,81,76,79,89,50,100,59,93,104,98,103,277,285,288,285,326,335,320,325,310,284,402,395,375,366,825,854,854,835,1006,1025,2181,2180,29992,29993]} 1. d4 {[%emt 0:00:01]} d5 {[%emt 0:01:15]} 2. c4 {[%emt 0:00:13]} c6 {[%emt 0:00:05]} 3. Nf3 {[%emt 0:00:17]} Nf6 {[%emt 0:00:06]} 4. Nc3 {[%emt 0:00:07]} e6 {[%emt 0:00:06]} 5. Bg5 {[%emt 0:00:21]} Nbd7 {[%emt 0:00:11]} 6. e3 {[%emt 0:00:22]} Be7 {[%emt 0:00:20]} 7. Bd3 {[%emt 0:00:13]} O-O {[%emt 0:01:44]} 8. O-O {[%emt 0:00:11]} dxc4 {[%emt 0:00:41]} 9. Bxc4 {[%emt 0:00:22]} c5 {[%emt 0:02:01]} 10. dxc5 {[%emt 0:18:04] Strongly threatening b4. D60: Queen's Gambit Declined: Classical: Unusual White 7th moves.} Nxc5 {[%emt 0:01:50]} 11. Qc2 {[%emt 0:07:55]} a6 {[%emt 0:05:10]} 12. Rfd1 {[%emt 0:01:09] White is slightly better.} Ncd7 {[%emt 0:02:31][%cal Bc5d7,Bd7e5,Be5g6][%mdl 32]} 13. Nd4 {[%emt 0:21:45] [#] White is much more active. The black rooks are badly placed.} Qa5 $146 {[%emt 0:23:35]} ({Predecessor:} 13... Qc7 14. Bd3 h6 15. Bxf6 Nxf6 16. Rac1 Bd7 17. h3 Rac8 18. Qb1 Qb8 19. Nce2 Bd6 20. Nf3 Bc6 {0-1 (26) Lautenbach,W-Scheerer,M freechess.de 2018}) 14. Bh4 {[%emt 0:03:07]} Ne5 {[%emt 0:01:21]} 15. Be2 {[%emt 0:05:26]} Ng6 {[%emt 0:13:12]} 16. Bg3 {[%emt 0:02:05]} Bd7 {[%emt 0:07:28]} 17. Bf3 {[%emt 0:02:41]} Ra7 {[%emt 0:00:06]} 18. Nb3 {[%emt 0:01:52]} Qb6 {[%emt 0:00:54]} 19. a4 {[%emt 0:12:16][%cal Ba2a4,Ba4a5][%mdl 32]} Rc8 {[%emt 0:03:23]} (19... a5 $14) 20. a5 $16 {[%emt 0:03:37]} Qd8 {[%emt 0:00:05]} 21. Nd4 {[%emt 0:07:16]} Rc5 {[%emt 0:04:01]} 22. Qb3 $36 {[%emt 0:02:39][%mdl 2048] White has strong initiative.} Rxa5 $2 {[%emt 0:06:36] Black cannot hold the game after this.} (22... Ne5 $16) 23. Rxa5 $18 {[%emt 0:00:32]} ({Not} 23. Bxb7 Rxa1 24. Rxa1 Nh5 $16) 23... Qxa5 {[%emt 0:00:05]} 24. Bb8 {[%emt 0:00:15][%mdl 64] [#] Deflection} ({Less strong is} 24. Bxb7 Qb4 25. Qxb4 Bxb4 $14) 24... Ra8 {[%emt 0:01:33]} 25. Qxb7 {[%emt 0:00:09][%mdl 64] Trapped Piece} Rxb8 {[%emt 0:00:10]} 26. Qxb8+ {[%emt 0:00:04]} Bf8 {[%emt 0:00:03]} 27. Bc6 {[%emt 0:01:31]} Qh5 {[%emt 0:04:45]} (27... Ne7 {was called for.}) 28. Bxd7 {[%emt 0:01:15]} Nxd7 {[%emt 0:00:05]} 29. Qc8 {[%emt 0:01:55][%csl LRa6,LRd7]} Nc5 {[%emt 0:00:06]} (29... Nb6 30. Qxa6 Qc5) 30. Nc6 {[%emt 0:00:52]} Qg5 {[%emt 0:03:03] Prevents Ne7+.} 31. f4 {[%emt 0:01:13]} Qh4 {[%emt 0:03:16]} 32. b4 {[%emt 0:01:53]} Nb3 {[%emt 0:00:18]} 33. g3 {[%emt 0:00:31]} Qh3 {[%emt 0:00:05] [#]} 34. Ne7+ $1 {[%emt 0:00:14][%mdl 512] Weighted Error Value: White=0.06 (flawless) /Black=0.69} 1-0

[Event "XV American Continental 2022"]
[Site "San Salvador"]
[Date "2022.05.06"]
[Round "7.5"]
[White "Figueredo Losada, Leonel"]
[Black "Kaidanov, Gregory"]
[Result "0-1"]
[ECO "C26"]
[WhiteElo "2337"]
[BlackElo "2556"]
[Annotator "TA"]
[PlyCount "50"]
[EventDate "2022.05.02"]
[EventCountry "ESA"]
[SourceTitle "playchess.com"]
[Source "ChessBase"]
[SourceQuality "1"]
[TimeControl "40/5400+30:1800+30"]

{[%evp 9,50,0,-10,-24,0,0,4,21,29,22,18,0,0,-20,-25,-34,-21,-55,0,-19,0,0,30,-65,0,0,0,-303,-308,-420,-416,-381,-258,-412,-404,-402,-388,-546,-529,-768,-749,-909,-443]} 1. e4 {[%emt 0:00:30]} e5 {[%emt 0:01:52]} 2. Nc3 {[%emt 0:00:06]} Nf6 {[%emt 0:00:30]} 3. d4 {[%emt 0:00:04]} exd4 {[%emt 0:00:11]} 4. Qxd4 {[%emt 0:00:03]} Nc6 {[%emt 0:00:12]} 5. Qd3 {[%emt 0:00:03]} Bc5 {[%emt 0:02:55]} 6. Bf4 {[%emt 0:01:33] C26: Vienna Game: 2...Nf6, sidelines .} d6 {[%emt 0:01:58]} 7. Qd2 {[%emt 0:00:44]} O-O {[%emt 0:04:05][%cal Of6e4]} 8. O-O-O {[%emt 0:00:08] The position is equal.} Be6 {[%emt 0:04:37][%cal Oe6a2]} 9. f3 {[%emt 0:00:14]} Nd7 {[%emt 0:01:39] [#]} 10. Be3 $146 {[%emt 0:12:39]} ({Predecessor:} 10. h4 Nce5 11. Nh3 a6 12. Be3 b5 13. Nf4 Bxe3 14. Qxe3 Nb6 15. b3 b4 16. Ncd5 {1-0 (28) Mamedyarov,S (2770)-Adams,M (2716) Tornelo INT 2021}) 10... a6 {[%emt 0:06:49]} 11. Bxc5 {[%emt 0:08:13]} Nxc5 {[%emt 0:00:37]} 12. Nge2 {[%emt 0:00:06]} b5 {[%emt 0:05:52]} 13. Nf4 {[%emt 0:15:20]} Ne5 {[%emt 0:07:52]} (13... Rb8 $15) 14. Ncd5 {[%emt 0:07:07]} Rb8 {[%emt 0:04:24]} 15. h4 {[%emt 0:08:22]} b4 {[%emt 0:12:27]} 16. Nh5 {[%emt 0:00:04]} (16. Nxb4 $11 c6 17. Qc3 (17. Bxa6 Bxa2 18. Nxa2 Qb6 $17) (17. Nxe6 fxe6 18. Qc3 Qf6 $14)) 16... c6 {[%emt 0:05:30]} (16... Bxd5 $15 17. Qxd5 a5) 17. Ndf6+ $1 $11 {[%emt 0:26:30]} Kh8 {[%emt 0:00:17]} (17... gxf6 18. Qh6) 18. f4 $2 {[%emt 0:00:48][%mdl 8192]} Ng4 $19 {[%emt 0:03:30]} ({Not} 18... gxf6 19. fxe5 fxe5 20. Qh6 $11) 19. Nxh7 {[%emt 0:02:34]} Kxh7 {[%emt 0:02:18]} 20. f5 {[%emt 0:00:04]} g6 {[%emt 0:07:27][%cal Od8a5] Threatens to win with ...Qa5!} 21. Ng3 {[%emt 0:00:17]} (21. fxe6 $142 gxh5 22. Qxd6 Nxe6 23. Bxa6) 21... gxf5 {[%emt 0:00:35]} 22. exf5 {[%emt 0:01:26]} Bd5 {[%emt 0:00:26]} 23. Qg5 {[%emt 0:08:22]} (23. f6 $142 Qxf6 24. Be2) 23... Rg8 {[%emt 0:00:46] Black is clearly winning.} ({Weaker is} 23... Qxg5+ 24. hxg5+ Kg8 25. Rd4 $17) 24. Rd4 {[%emt 0:04:37] [#]} Qe8 $1 {[%emt 0:04:55]} 25. Kd2 {[%emt 0:02:24] [#]} (25. Qf4 Qe1+) 25... Qe3+ {[%emt 0:01:37] Weighted Error Value: White=0.68/Black=0.14 (very precise)} 0-1

[Event "XV American Continental 2022"]
[Site "San Salvador"]
[Date "2022.05.06"]
[Round "7.6"]
[White "Sarkar, Justin"]
[Black "Hungaski, Robert"]
[Result "1/2-1/2"]
[ECO "C99"]
[WhiteElo "2325"]
[BlackElo "2521"]
[Annotator "TA"]
[PlyCount "44"]
[EventDate "2022.05.02"]
[EventCountry "ESA"]
[SourceTitle "playchess.com"]
[Source "ChessBase"]
[SourceQuality "1"]
[TimeControl "40/5400+30:1800+30"]

{[%evp 36,44,33,23,31,28,47,20,51,20,35]} 1. e4 {[%emt 0:05:15]} e5 {[%emt 0:01:30]} 2. Nf3 {[%emt 0:00:22]} Nc6 {[%emt 0:00:06]} 3. Bb5 {[%emt 0:01:13][%cal Bf1b5,Bb5a4,Ba4b3][%mdl 32]} a6 {[%emt 0:00:07]} 4. Ba4 {[%emt 0:00:04]} Nf6 {[%emt 0:00:07]} 5. O-O {[%emt 0:00:34]} Be7 {[%emt 0:00:09]} 6. Re1 {[%emt 0:01:45]} b5 {[%emt 0:00:07]} 7. Bb3 {[%emt 0:00:02]} d6 {[%emt 0:00:06]} 8. c3 {[%emt 0:00:08]} O-O {[%emt 0:00:12]} 9. h3 {[%emt 0:01:17]} Na5 {[%emt 0:00:24]} 10. Bc2 {[%emt 0:00:08]} c5 {[%emt 0:00:07]} 11. d4 {[%emt 0:00:52]} Qc7 {[%emt 0:00:16]} 12. Nbd2 {[%emt 0:01:20]} cxd4 {[%emt 0:01:02]} 13. cxd4 {[%emt 0:00:05]} Nc6 {[%emt 0:00:16]} 14. Nb3 {[%emt 0:02:29]} a5 {[%emt 0:00:19][%cal Ba6a5,Ba5a4][%mdl 32]} 15. Be3 {[%emt 0:00:28]} a4 {[%emt 0:00:10]} 16. Nbd2 {[%emt 0:00:07]} Nb4 {[%emt 0:00:09]} 17. Bb1 {[%emt 0:00:20]} Bd7 {[%emt 0:00:28]} 18. a3 {[%emt 0:04:46]} Nc6 {[%emt 0:00:08]} 19. Bd3 {[%emt 0:03:33]} Qb7 {[%emt 0:00:15] C99: Closed Ruy Lopez: Chigorin Defence: 11 d4 Qc7 12 Nbd2 cxd4.} 20. Qe2 {[%emt 0:04:06]} Rab8 {[%emt 0:11:44]} 21. Rac1 {[%emt 0:01:14]} Rfc8 {[%emt 0:14:27]} 22. Red1 {[%emt 0:02:08] [#]} exd4 $146 {Black got outplayed after the opening.  Weighted Error Value: White=0.18 (very precise) /Black=0.14 (very precise)} ({Predecessor:} 22... Qa6 23. Nb1 exd4 24. Nxd4 Ne5 25. Nc3 Nxd3 26. Qxd3 Rc4 27. Nc2 Be6 28. Bd4 Qc8 29. Ne3 Rc6 {1-0 (55) Kraujunas,V (1630)-Petersen,H (1528) LSS email 2013}) 1/2-1/2

[Event "XV American Continental 2022"]
[Site "San Salvador"]
[Date "2022.05.06"]
[Round "7.7"]
[White "Proudian, Armen"]
[Black "Giron, Jorge Ernesto"]
[Result "1/2-1/2"]
[ECO "B39"]
[WhiteElo "2418"]
[BlackElo "2257"]
[Annotator "TA"]
[PlyCount "136"]
[EventDate "2022.05.02"]
[EventCountry "ESA"]
[SourceTitle "playchess.com"]
[Source "ChessBase"]
[SourceQuality "1"]
[TimeControl "40/5400+30:1800+30"]

{[%evp 18,136,55,3,6,19,45,31,25,12,39,0,18,0,0,-11,7,9,19,0,0,0,14,-26,-28,-22,-29,-29,-28,-23,-19,-19,-20,-34,-8,-13,-14,-150,-14,-16,-19,-33,-33,-40,0,0,0,0,0,-4,0,0,0,0,0,0,0,0,0,0,0,0,0,0,0,0,0,0,0,0,0,0,0,0,0,0,0,0,0,0,0,0,0,0,0,0,0,0,0,0,0,0,0,0,0,0,0,0,0,0,0,0,0,0,0,0,0,0,0,0,0,0,0,0,0,0,0,0,0,0,0]} 1. e4 {[%emt 0:00:25]} c5 {[%emt 0:00:06]} 2. Nf3 {[%emt 0:00:29]} Nc6 {[%emt 0:00:08]} 3. d4 {[%emt 0:00:23]} cxd4 {[%emt 0:00:05]} 4. Nxd4 {[%emt 0:00:11]} g6 {[%emt 0:00:04]} 5. c4 {[%emt 0:01:28]} Bg7 {[%emt 0:00:05]} 6. Be3 {[%emt 0:00:30]} Nf6 {[%emt 0:00:31]} 7. Nc3 {[%emt 0:00:33]} Ng4 {[%emt 0:00:26]} 8. Qxg4 {[%emt 0:06:04]} Nxd4 {[%emt 0:00:33]} 9. Qd1 {[%emt 0:02:06]} Nc6 {[%emt 0:03:25]} 10. Be2 {[%emt 0:04:30]} (10. Rc1 $14) 10... Bxc3+ $11 {[%emt 0:01:21] B39: Sicilian: Maroczy Bind with 5...Bg7 and 7...Ng4.} 11. bxc3 {[%emt 0:00:12]} Qa5 {[%emt 0:00:12]} 12. Qd2 {[%emt 0:05:49]} d6 {[%emt 0:04:45] [#] White is slightly better.} 13. Rb1 $146 {[%emt 0:03:15]} ({Predecessor:} 13. O-O Be6 14. Rab1 b6 15. f4 f6 16. f5 Bf7 17. c5 bxc5 18. Rb7 O-O 19. fxg6 hxg6 20. Bh6 Rfb8 21. Rd7 Qxa2 22. Qf4 Qxe2 23. Rxe7 Rb2 {0-1 (23) Kabelka,O (1939)-Cely,J (2078) Czech Republic 2015}) 13... Qc7 {[%emt 0:00:51]} 14. c5 {[%emt 0:01:52] Prevents b6.} dxc5 {[%emt 0:00:12]} 15. Bxc5 {[%emt 0:00:35][%cal Be3c5,Bc5e7,Be7f6][%mdl 32]} O-O {[%emt 0:06:11]} 16. O-O {[%emt 0:05:17]} Na5 {[%emt 0:07:47]} 17. Qg5 {[%emt 0:07:00]} Re8 {[%emt 0:00:11][%cal Bf8e8,Be8e4,Be4e2,Be2a2][%mdl 32]} 18. Bb5 {[%emt 0:07:00] A strong pair of Bishops.} Bd7 {[%emt 0:00:31]} 19. Bxe7 {[%emt 0:04:20] aiming for Bf6.} h6 {[%emt 0:02:45]} 20. Qh4 {[%emt 0:04:41] Strongly threatening Bf6.} Bxb5 {[%emt 0:08:42]} 21. Bf6 {[%emt 0:02:18][%cal Oh4h6]} Qc6 {[%emt 0:00:10]} (21... Bxf1 $2 {gets mated.} 22. Qxh6) 22. Rxb5 {[%emt 0:08:59] [#]} Rxe4 {[%emt 0:00:11]} 23. Qxh6 {[%emt 0:01:11][%csl Gf6][%cal Rh6h8]} Qxf6 {[%emt 0:00:03]} 24. Rxa5 {[%emt 0:01:41]} Qxc3 {[%emt 0:00:14]} 25. Rd5 {[%emt 0:11:45]} Qc4 {[%emt 0:00:59]} 26. Qd2 {[%emt 0:05:39]} Re2 {[%emt 0:03:38]} 27. Rd8+ {[%emt 0:00:56] [#]} (27. Qd1 $1 $11 {remains equal.}) 27... Rxd8 {[%emt 0:02:45]} (27... Kg7 $1 $17 28. Qxe2 Qxe2 29. Rxa8 Qxa2) 28. Qxd8+ $17 {[%emt 0:00:09][%mdl 4096] Endgame KQR-KQR} Kg7 {[%emt 0:00:04]} 29. a3 {[%emt 0:00:23]} Qc3 {[%emt 0:03:32]} 30. g3 {[%emt 0:04:36]} Ra2 {[%emt 0:05:26]} 31. Qb8 {[%emt 0:04:16] The position is equal.} Rxa3 {[%emt 0:02:20]} 32. Qxb7 {[%emt 0:00:08]} a5 {[%emt 0:07:39]} 33. h4 {[%emt 0:00:45]} Qe5 {[%emt 0:04:16]} 34. Rd1 {[%emt 0:01:34]} Ra1 {[%emt 0:02:55]} 35. Rxa1 {[%emt 0:00:27]} Qxa1+ $11 {[%emt 0:00:04] KQ-KQ} 36. Kg2 {[%emt 0:00:09]} Qd4 {[%emt 0:00:13]} 37. h5 {[%emt 0:01:20]} gxh5 {[%emt 0:01:06]} 38. Qb5 {[%emt 0:00:25]} a4 {[%emt 0:00:04] ...a3 is the strong threat.} 39. Qg5+ {[%emt 0:02:38]} Kf8 {[%emt 0:00:43]} 40. Qxh5 {[%emt 0:00:47]} Ke7 {[%emt 0:09:41]} 41. Qg5+ {[%emt 0:31:17]} f6 {[%emt 0:30:25]} 42. Qa5 {[%emt 0:01:33]} Qc4 {[%emt 0:05:08]} 43. Kh2 {[%emt 0:00:00]} Ke6 {[%emt 0:00:00]} 44. Qb6+ {[%emt 0:00:00]} Kf5 {[%emt 0:00:00]} 45. Qe3 {[%emt 0:00:00]} Qe4 {[%emt 0:00:00] Threatens to win with ...Qxe3.} 46. Qc3 {[%emt 0:00:00]} Kg6 {[%emt 0:00:00]} 47. Qa3 {[%emt 0:00:00]} Qd4 {[%emt 0:00:00]} 48. Qf3 {[%emt 0:00:00]} Kg5 {[%emt 0:00:00]} 49. Kg2 {[%emt 0:00:00]} f5 {[%emt 0:00:00] White must now prevent ...Qe4.} 50. Qa3 {[%emt 0:00:00]} Kg6 {[%emt 0:00:00]} 51. Qf8 {[%emt 0:00:00]} Qd5+ {[%emt 0:00:00]} 52. Kh2 {[%emt 0:00:00]} Qf7 {[%emt 0:00:00]} 53. Qa3 {[%emt 0:00:00]} Qd7 {[%emt 0:00:00]} 54. Qf8 {[%emt 0:00:00]} Kg5 {[%emt 0:00:00]} 55. Qb4 {[%emt 0:00:00]} Kf6 {[%emt 0:00:00]} 56. Qc3+ {[%emt 0:00:00]} Ke6 {[%emt 0:00:00]} 57. Qc4+ {[%emt 0:00:00]} Ke7 {[%emt 0:00:00]} 58. Qc5+ {[%emt 0:00:00]} Kf6 {[%emt 0:00:00]} 59. Qc3+ {[%emt 0:00:00]} Kg6 {[%emt 0:00:00]} 60. Qb4 {[%emt 0:00:00]} Qc6 {[%emt 0:00:00]} 61. Qf8 {[%emt 0:00:00]} Qe6 {[%emt 0:02:56]} 62. Qb4 {[%emt 0:00:00]} Qe4 {[%emt 0:00:11]} 63. Qc3 {[%emt 0:00:00]} Kh5 {[%emt 0:08:24]} 64. Qa3 {[%emt 0:00:00]} Kg5 {[%emt 0:01:30]} 65. Qc3 {[%emt 0:00:00]} Kg4 {[%emt 0:00:26]} 66. f3+ {[%emt 0:00:00]} Qxf3 {[%emt 0:00:31]} 67. Qg7+ {[%emt 0:00:00]} Kh5 {[%emt 0:00:02]} 68. Qh7+ {[%emt 0:00:00]} (68. g4+ $5 Kh4 69. Qh7+ Kxg4 70. Qg7+ Kf4 71. Qh6+ Ke4 72. Qc6+ Ke3 73. Qb6+ Ke2 74. Qb2+ Ke1 75. Qb4+ Kf2 76. Qc5+ Ke2 77. Qc2+ Kf1 78. Qc1+ Kf2 79. Qc5+ Ke1 80. Qb4+ Kf2 81. Qc5+ $19) 68... Kg5 {[%emt 0:00:02] Weighted Error Value: White=0.11 (very precise) /Black=0.07 (flawless)} 1/2-1/2

[Event "XV American Continental 2022"]
[Site "San Salvador"]
[Date "2022.05.06"]
[Round "7.8"]
[White "Mekhitarian, Krikor Sevag"]
[Black "Arvelo Leo, Gian Carlo"]
[Result "1-0"]
[ECO "E10"]
[WhiteElo "2569"]
[BlackElo "2229"]
[Annotator "TA"]
[PlyCount "65"]
[EventDate "2022.05.02"]
[EventCountry "ESA"]
[SourceTitle "playchess.com"]
[Source "ChessBase"]
[SourceQuality "1"]
[TimeControl "40/5400+30:1800+30"]

{[%evp 12,65,38,0,0,0,45,42,52,37,38,0,0,8,17,21,22,0,29,0,6,0,108,108,83,83,79,93,240,246,247,232,212,213,266,289,275,261,342,318,454,462,586,623,579,576,590,411,409,389,406,396,557,549,591,559]} 1. d4 {[%emt 0:01:34]} Nf6 {[%emt 0:01:00]} 2. c4 {[%emt 0:00:03]} c5 {[%emt 0:00:18]} 3. d5 {[%emt 0:00:04]} b5 {[%emt 0:00:43]} 4. cxb5 {[%emt 0:00:07]} e6 {[%emt 0:00:25]} 5. dxe6 {[%emt 0:09:05]} fxe6 {[%emt 0:00:12]} 6. Nf3 {[%emt 0:00:25]} d5 {[%emt 0:02:27]} 7. g3 {[%emt 0:00:06]} (7. Nc3 $5 {[%cal Re2e4]}) 7... a6 {[%emt 0:11:04] is recently more successful than 7...Bd6. E10: Blumenfeld Gambit.} 8. bxa6 {[%emt 0:00:38]} Bd6 {[%emt 0:00:28]} 9. Bg2 {[%emt 0:00:47]} (9. Qa4+ Bd7 10. Qd1 O-O $11) 9... O-O {[%emt 0:00:36] White is slightly better.} 10. O-O {[%emt 0:00:03]} Nc6 {[%emt 0:00:33]} 11. b3 {[%emt 0:03:01]} Bxa6 {[%emt 0:02:58]} 12. Nc3 {[%emt 0:00:07]} Qe7 {[%emt 0:04:51]} 13. Bb2 {[%emt 0:12:06] [#]} Rab8 $146 {[%emt 0:08:44]} ({Predecessor:} 13... Kh8 14. Re1 d4 15. Na4 e5 16. e3 Rad8 17. exd4 cxd4 18. Ng5 Nb4 19. Ba3 d3 {1-0 (28) Postny,E (2606)-Arnold,M (2524) Chess.com INT 2017}) 14. Re1 {[%emt 0:07:53]} Rfd8 {[%emt 0:07:42]} (14... d4 $5 {[%cal Rd4c3]} 15. Na4 Bb5 $11) 15. Rc1 {[%emt 0:09:20]} c4 {[%emt 0:22:22]} 16. Bh3 {[%emt 0:23:04]} h6 {[%emt 0:08:15]} (16... Bb4 $11 {keeps the balance.}) 17. e4 $16 {[%emt 0:04:57]} d4 {[%emt 0:05:15] [#]} 18. e5 $1 {[%emt 0:12:17]} Nxe5 {[%emt 0:12:39]} 19. Nxd4 {[%emt 0:03:31]} (19. Nxe5 dxc3 20. Ng6 (20. Nc6 cxb2 21. Nxe7+ Bxe7 $17) 20... cxb2 $1 $17) 19... Bc5 {[%emt 0:01:06] A mistake that costs the game.} 20. Rxe5 $18 {[%emt 0:03:55]} (20. Bxe6+ Kh8 21. Nd5 (21. Rxe5 Bxd4 22. Nd5 Rxd5 $19) 21... Nxd5 22. Rxe5 c3 $11) 20... Bxd4 {[%emt 0:00:21] [#]} 21. Nd5 $1 {[%emt 0:01:07][%mdl 512]} Rxd5 {[%emt 0:05:14]} 22. Bxd4 {[%emt 0:00:08]} Rxe5 {[%emt 0:01:11]} 23. Bxe5 {[%emt 0:00:03] A strong pair of Bishops.} Rd8 {[%emt 0:01:32]} 24. Qe2 {[%emt 0:00:14]} (24. Bxe6+ $2 Kh8 25. Qf3 Qxe6 26. Bxf6 gxf6 27. bxc4 Kg7 $19) 24... Kf7 {[%emt 0:01:43]} 25. Re1 {[%emt 0:00:39] aiming for Bxf6.} ({Don't take} 25. bxc4 Qd7 26. Re1 Qd3) 25... Bb7 {[%emt 0:00:33]} (25... Nh7 {is a better defense.} 26. bxc4 Kg8) 26. Bxf6 {[%emt 0:02:48]} Qxf6 {[%emt 0:00:12]} 27. Bxe6+ {[%emt 0:01:56]} Kf8 {[%emt 0:00:12]} 28. Bxc4 {[%emt 0:00:14]} Bc6 {[%emt 0:00:50]} 29. Qe6 {[%emt 0:02:09]} Qxe6 {[%emt 0:00:37]} 30. Bxe6 {[%emt 0:00:04]} (30. Rxe6 $2 {is the wrong capture.} Rd1+ 31. Bf1 Bd7 32. Rxh6 gxh6 $19) 30... Re8 {[%emt 0:00:24][%cal Oc6d7]} 31. f4 {[%emt 0:00:30]} g6 {[%emt 0:00:22]} (31... Bd7 {was worth a try.} 32. f5 (32. Bxd7 Rxe1+ 33. Kf2 Rd1 $15) 32... Bxe6 33. Rxe6 Ra8) 32. Kf2 {[%emt 0:00:06]} Kg7 {[%emt 0:00:48]} 33. Bc4 {[%emt 0:00:18] Weighted Error Value: White=0.11 (very precise) /Black=0.39} 1-0

[Event "XV American Continental 2022"]
[Site "San Salvador"]
[Date "2022.05.06"]
[Round "7.9"]
[White "Cervantes Landeiro, Thalia"]
[Black "Jimenez Garcia, Emmanuel"]
[Result "1/2-1/2"]
[ECO "A40"]
[WhiteElo "2193"]
[BlackElo "2422"]
[Annotator "TA"]
[PlyCount "83"]
[EventDate "2022.05.02"]
[EventCountry "ESA"]
[SourceTitle "playchess.com"]
[Source "ChessBase"]
[SourceQuality "1"]
[TimeControl "40/5400+30:1800+30"]

{[%evp 9,83,54,83,77,91,101,100,92,109,87,100,79,116,114,97,93,97,94,96,108,124,99,130,117,130,130,130,130,131,131,132,56,97,25,141,119,130,77,137,137,137,137,137,137,137,130,130,130,130,130,130,130,130,130,130,130,130,130,130,110,130,130,130,130,210,193,193,179,186,186,179,134,134,132,132,111]} 1. d4 {[%emt 0:00:02]} g6 {[%emt 0:03:47]} 2. c4 {[%emt 0:00:09]} Bg7 {[%emt 0:00:05]} 3. Nc3 {[%emt 0:00:34]} c5 {[%emt 0:00:32]} 4. d5 {[%emt 0:00:30]} Bxc3+ {[%emt 0:00:31]} 5. bxc3 {[%emt 0:00:07]} e5 {[%emt 0:00:07] [#]} 6. e4 $1 {[%emt 0:04:19] A40: Unusual replies to 1 d4.} d6 {[%emt 0:00:06]} 7. Bd3 {[%emt 0:01:23]} Nd7 {[%emt 0:00:24]} 8. Ne2 {[%emt 0:06:07] White is better.} Qe7 {[%emt 0:02:00]} 9. O-O {[%emt 0:03:29]} Ngf6 {[%emt 0:02:04]} 10. f3 {[%emt 0:04:02] [#]} Kd8 $146 {[%emt 0:02:50]} ({Predecessor:} 10... Nh5 11. g3 O-O 12. Bh6 Ng7 13. g4 Nb6 14. Kh1 Kh8 15. Rg1 Bd7 16. Qd2 Rg8 {½-½ (67) Uwira,O (2249)-Nothnagel,H (2303) Germany 2012}) 11. Be3 {[%emt 0:05:51]} (11. Rb1 {feels hotter.} Kc7 12. Qb3 b6 13. a4) 11... Kc7 {[%emt 0:01:18]} 12. Qd2 {[%emt 0:03:29]} Nh5 {[%emt 0:03:19]} 13. a4 a5 {[%emt 0:00:17]} 14. Rab1 {[%emt 0:05:10]} b6 {[%emt 0:00:19]} 15. g4 {[%emt 0:10:44]} Ng7 {[%emt 0:00:18]} 16. Bh6 {[%emt 0:02:38]} Rg8 {[%emt 0:06:49]} 17. Ng3 {[%emt 0:02:00] Against f5} Ba6 {[%emt 0:06:26]} 18. Rf2 {[%emt 0:04:53]} f6 {[%emt 0:00:14]} 19. h4 {[%emt 0:02:09]} Raf8 {[%emt 0:08:39]} 20. Kg2 {[%emt 0:05:35]} (20. Rg2 $16) 20... Rf7 $1 $14 {[%emt 0:13:15] [#]} 21. Rh1 {[%emt 0:03:54]} (21. Kh3 $1 $16) 21... Ne8 {[%emt 0:04:32]} (21... f5 $11 {remains equal.}) 22. Kf1 {[%emt 0:02:22]} Qd8 {[%emt 0:05:21]} 23. Ke2 {[%emt 0:02:09]} (23. Rg1 $142) 23... Qe7 {[%emt 0:00:05]} ({Better is} 23... Ng7) 24. Kd1 $16 {[%emt 0:01:56][%cal Be2d1,Bd1c2,Bc2b3,Bb3a3][%mdl 32]} Kb7 {[%emt 0:00:30]} 25. Kc2 {[%emt 0:01:44]} Ka7 {[%emt 0:00:26]} 26. Kb3 {[%emt 0:01:05]} Bc8 {[%emt 0:00:12]} 27. Ka3 {[%emt 0:01:55] 0x0.002b16f22b2cdp-1022s more active pieces.} Ba6 {[%emt 0:01:33]} 28. Qe3 {[%emt 0:04:44]} Nc7 {[%emt 0:00:39]} 29. Rh3 {[%emt 0:06:56]} Ne8 {[%emt 0:00:14]} 30. Qc1 {[%emt 0:00:29]} Kb7 {[%emt 0:01:06]} 31. Be3 {[%emt 0:04:22]} Ka7 {[%emt 0:00:10]} 32. Rh1 {[%emt 0:00:38]} Bc8 {[%emt 0:00:18]} 33. Qd2 {[%emt 0:02:25]} Nb8 {[%emt 0:02:01]} 34. Qe2 {[%emt 0:03:08]} Nd7 {[%emt 0:00:45]} 35. Rb1 {[%emt 0:02:32]} Nc7 {[%emt 0:00:51]} 36. h5 {[%emt 0:01:33]} g5 {[%emt 0:00:59]} (36... Rh8 $16 37. Rh1 Rff8) 37. Nf5 {[%emt 0:00:15] White is clearly better.} Qf8 {[%emt 0:00:06]} 38. Qb2 {[%emt 0:00:30]} Na8 {[%emt 0:00:53]} 39. Qb5 {[%emt 0:00:57]} Nb8 {[%emt 0:00:39]} 40. Rfb2 {[%emt 0:02:02]} Bxf5 {[%emt 0:01:02]} 41. exf5 {[%emt 0:30:27]} ({Don't take} 41. gxf5 Rb7 $14) 41... Qe8 {[%emt 0:32:26]} 42. Be4 {[%emt 0:01:21] Weighted Error Value: White=0.12 (very precise) /Black=0.14 (very precise)} 1/2-1/2